bitfinex/quotes_SOLUSD_20250821
["timestamp","ask_amount","ask_price","bid_price","bid_amount"]
[1755791342690,22.55710635,183.07,183.06,0.03]
[1755791342869,22.69926792,183.07,183.06,0.03]
[1755791343189,26.70897448,183.07,183.06,0.03]
[1755791344788,31.23071293,183.07,183.06,0.03]
[1755791346193,44.4016556,183.05,183.04,0.03]
[1755791346392,44.4016556,183.05,183.02,0.03]
[1755791346393,13.87991715,183.04,183.02,0.03]
[1755791346591,22.00926792,183.03,183.02,0.03]
[1755791346793,22.69926792,183.03,183.02,0.03]
[1755791347090,26.70922942,183.03,183.02,0.03]
[1755791347292,26.01922942,183.03,183.02,0.03]
[1755791347592,95.31922942,183.03,183.02,0.03]
[1755791348373,90.79749097,183.03,183.02,0.03]
[1755791348581,95.3191122,183.03,183.02,0.03]
[1755791349174,96.0091122,183.03,183.02,0.03]
[1755791350276,91.99926792,183.03,183.02,0.03]
[1755791350486,65.99926792,183.03,183.02,0.03]
[1755791351487,65.99926792,183.03,182.94,0.67]
[1755791351488,4.52173845,182.96,182.94,0.67]
[1755791351686,0.28432314,182.95,182.94,0.67]
[1755791352486,4.80606159,182.95,182.94,0.67]
[1755791353090,0.28432314,182.95,182.94,0.67]
[1755791354402,4.80606159,182.95,182.94,0.67]
[1755791354605,0.28432314,182.94,182.91,0.67]
[1755791354777,0.28432314,182.94,182.92,0.67]
[1755791354778,4.80606159,182.93,182.92,0.67]
[1755791354983,0.28432314,182.93,182.92,0.67]
[1755791355385,79.09555542,182.99,182.92,0.67]
[1755791355606,0.28432314,182.94,182.92,0.67]
[1755791356781,4.80606159,182.94,182.9,0.72]
[1755791356976,0.28432314,182.94,182.91,0.72]
[1755791357390,0.28432314,182.94,182.91,5.24173845]
[1755791357589,0.28432314,182.94,182.92,0.72]
[1755791357907,0.28432314,182.94,182.93,0.72]
[1755791358408,4.52173845,182.95,182.93,0.72]
[1755791358595,0.28432314,182.94,182.93,0.72]
[1755791360212,0.28432314,182.94,182.92,0.03]
[1755791360720,0.28432314,182.94,182.92,0.75]
[1755791361195,18.4016556,182.94,182.92,0.03]
[1755791361394,19.0516556,182.93,182.92,0.03]
[1755791361801,45.0516556,182.93,182.92,0.03]
[1755791362401,48.64341609,182.93,182.92,0.03]
[1755791363114,47.99341609,182.93,182.92,0.03]
[1755791363688,48.64341609,182.93,182.92,0.03]
[1755791365291,54.109988,182.93,182.92,0.03]
[1755791365513,28.109988,182.93,182.92,0.03]
[1755791366225,54.109988,182.93,182.92,0.03]
[1755791366412,22.64341609,182.93,182.92,0.03]
[1755791366721,48.64341609,182.93,182.92,0.03]
[1755791367025,22.64341609,182.93,182.92,0.03]
[1755791367526,28.109988,182.93,182.92,0.03]
[1755791367904,54.109988,182.93,182.92,0.03]
[1755791368108,22.64341609,182.93,182.92,0.03]
[1755791370215,65.94341609,182.93,182.92,0.03]
[1755791371221,22.64341609,182.93,182.92,0.03]
[1755791371524,65.94341609,182.93,182.92,0.03]
[1755791373133,65.29341609,182.93,182.92,0.03]
[1755791373725,21.70909295,182.93,182.92,0.03]
[1755791373930,65.00909295,182.93,182.92,0.03]
[1755791374233,60.77167764,182.93,182.92,0.03]
[1755791374435,65.15125452,182.93,182.92,0.03]
[1755791374617,91.00909295,182.93,182.92,0.03]
[1755791374821,91.29341609,182.93,182.92,0.03]
[1755791375221,91.94341609,182.93,182.92,0.03]
[1755791375417,65.94341609,182.93,182.92,0.03]
[1755791377030,65.29341609,182.93,182.92,0.03]
[1755791377635,65.94341609,182.93,182.92,0.03]
[1755791378437,17.1873545,182.93,182.92,0.03]
[1755791378623,65.00909295,182.93,182.92,0.75]
[1755791378824,91.15125452,182.93,182.92,0.75]
[1755791379028,44.11733246,182.93,182.92,0.75]
[1755791379235,5.42756144,182.99,182.92,5.27173845]
[1755791379236,4.52173845,182.96,182.92,5.27173845]
[1755791379544,18.11733246,182.93,182.92,0.03]
[1755791379710,18.4016556,182.93,182.92,0.03]
[1755791380106,21.99200553,182.93,182.92,0.03]
[1755791380844,17.47026708,182.93,182.92,0.03]
[1755791381016,21.99200553,182.93,182.92,0.03]
[1755791381335,22.64200553,182.93,182.92,0.03]
[1755791381710,13.87991715,182.92,182.9,0.03]
[1755791381918,65.29200553,182.91,182.9,0.03]
[1755791382129,65.94200553,182.91,182.9,0.03]
[1755791384634,65.29200553,182.91,182.9,0.03]
[1755791384835,65.94200553,182.91,182.9,0.03]
[1755791385044,65.29200553,182.91,182.9,0.03]
[1755791385529,60.77026708,182.91,182.9,0.03]
[1755791385721,65.29200553,182.91,182.9,0.03]
[1755791385922,65.94200553,182.91,182.9,0.03]
[1755791386550,39.59559401,182.87,182.77,79.8]
[1755791386841,39.87991715,182.84,182.83,0.7]
[1755791387263,39.87991715,182.84,182.81,0.7]
[1755791387474,39.87991715,182.84,182.82,0.7]
[1755791387965,26.0,182.84,182.82,0.7]
[1755791390650,26.28432314,182.84,182.83,0.7]
[1755791391063,0.28432314,182.84,182.83,0.7]
[1755791391763,0.28432314,182.84,182.83,0.73]
[1755791393566,4.52173845,182.87,182.83,0.73]
[1755791393751,4.80606159,182.86,182.83,0.03]
[1755791393951,4.80606159,182.86,182.84,0.7]
[1755791394155,0.28432314,182.86,182.85,0.7]
[1755791394356,3.60848225,182.89,182.85,5.22173845]
[1755791394674,26.0,182.89,182.86,5.22173845]
[1755791394862,26.0,182.89,182.87,0.7]
[1755791395061,26.0,182.89,182.86,4.52173845]
[1755791395261,26.28432314,182.89,182.88,0.7]
[1755791395658,26.28432314,182.89,182.85,4.52173845]
[1755791395858,0.14216157,182.88,182.83,0.03]
[1755791396179,4.66390002,182.87,182.85,0.7]
[1755791396372,4.66390002,182.87,182.83,4.55173845]
[1755791396547,4.66390002,182.87,182.85,0.7]
[1755791397186,4.52173845,182.86,182.83,0.03]
[1755791397366,4.52173845,182.86,182.83,0.73]
[1755791397764,0.28432314,182.87,182.83,0.73]
[1755791397966,4.52173845,182.86,182.83,0.73]
[1755791398179,0.28432314,182.84,182.83,0.03]
[1755791399302,0.28432314,182.84,182.83,0.73]
[1755791399677,4.52173845,182.86,182.83,0.73]
[1755791399871,0.28432314,182.86,182.83,0.03]
[1755791400077,0.28432314,182.86,182.84,0.7]
[1755791400399,26.0,182.89,182.85,5.22173845]
[1755791400571,26.0,182.89,182.86,5.22173845]
[1755791400775,0.06,182.9,182.87,5.22173845]
[1755791401082,0.06,182.9,182.89,4.52173845]
[1755791401466,0.06,182.9,182.89,0.7]
[1755791401891,0.06,182.9,182.89,5.22173845]
[1755791402302,0.06,182.9,182.89,0.7]
[1755791402711,0.06,182.9,182.85,0.7]
[1755791403018,0.34432314,182.9,182.86,5.22173845]
[1755791403324,0.06,182.9,182.88,4.52173845]
[1755791403692,26.06,182.9,182.83,79.83]
[1755791403902,3.61985099,182.89,182.84,0.7]
[1755791404107,0.34432314,182.9,182.85,0.7]
[1755791404410,0.28432314,182.88,182.85,0.7]
[1755791404602,0.06,182.9,182.86,0.7]
[1755791404798,0.06,182.9,182.87,0.7]
[1755791405015,3.96417413,182.9,182.88,0.7]
[1755791405219,0.34432314,182.9,182.88,0.7]
[1755791405520,0.34432314,182.9,182.86,5.22173845]
[1755791405727,4.86606159,182.9,182.85,4.52173845]
[1755791405902,0.34432314,182.9,182.85,4.52173845]
[1755791406109,4.86606159,182.9,182.86,5.22173845]
[1755791406410,4.86606159,182.9,182.84,69.32]
[1755791406617,4.52173845,182.87,182.84,69.32]
[1755791406805,4.52173845,182.87,182.84,70.02]
[1755791407009,0.28432314,182.88,182.84,69.32]
[1755791407205,4.52173845,182.87,182.84,79.8]
[1755791407412,0.28432314,182.86,182.84,79.8]
[1755791407628,4.80606159,182.86,182.83,0.03]
[1755791407830,0.95432314,182.85,182.83,0.03]
[1755791408138,0.28432314,182.86,182.83,0.03]
[1755791408139,4.80606159,182.84,182.83,0.03]
[1755791408306,0.28432314,182.84,182.83,0.03]
[1755791408499,0.28432314,182.88,182.83,5.25173845]
[1755791408812,0.28432314,182.88,182.84,0.7]
[1755791408813,9.09591258,182.88,182.84,0.7]
[1755791409009,5.47606159,182.88,182.83,4.55173845]
[1755791409210,0.28432314,182.86,182.83,0.03]
[1755791409522,0.28432314,182.85,182.83,0.03]
[1755791410112,4.80606159,182.85,182.83,0.03]
[1755791410614,8.42591258,182.85,182.83,0.03]
[1755791410833,4.80606159,182.85,182.83,0.03]
[1755791411244,0.28432314,182.85,182.83,0.03]
[1755791411542,3.90747085,182.85,182.83,0.03]
[1755791411737,0.28432314,182.85,182.83,0.03]
[1755791412043,3.90747085,182.85,182.83,0.03]
[1755791412239,3.91059053,182.85,182.83,0.03]
[1755791412541,4.55514638,182.9,182.84,0.7]
[1755791412759,0.06,182.9,182.89,4.52173845]
[1755791413055,8.88105051,182.9,182.84,9.74347645]
[1755791413215,8.29321208,182.89,182.84,9.74347645]
[1755791413419,3.62931206,182.88,182.84,9.74347645]
[1755791413623,3.62931206,182.88,182.84,5.22173845]
[1755791413917,3.62849888,182.88,182.86,4.52173845]
[1755791414118,3.62849888,182.89,182.86,5.22173845]
[1755791414423,3.62849888,182.88,182.87,5.22173845]
[1755791414646,3.62849888,182.89,182.87,5.22173845]
[1755791414843,3.62849888,182.89,182.88,4.52173845]
[1755791415140,3.62849888,182.89,182.88,0.7]
[1755791415454,0.06,182.9,182.83,0.03]
[1755791415619,4.58173845,182.9,182.85,4.52173845]
[1755791415815,0.20216157,182.9,182.86,4.52173845]
[1755791416023,0.20216157,182.9,182.87,5.22173845]
[1755791416237,4.72390002,182.9,182.84,0.7]
[1755791416430,8.15250256,182.89,182.84,0.7]
[1755791416751,3.914157,182.88,182.84,0.7]
[1755791416924,3.914157,182.88,182.84,5.22173845]
[1755791417120,3.914157,182.88,182.85,5.22173845]
[1755791417338,3.62983386,182.89,182.87,4.52173845]
[1755791417665,0.06,182.9,182.87,4.52173845]
[1755791417834,3.68983386,182.9,182.85,0.7]
[1755791418029,0.34432314,182.9,182.83,79.83]
[1755791418240,0.06,182.9,182.87,4.52173845]
[1755791418553,0.06,182.9,182.84,0.7]
[1755791418746,4.58173845,182.9,182.85,4.52173845]
[1755791419144,4.58173845,182.9,182.83,85.05173845]
[1755791419145,0.28432314,182.88,182.83,85.05173845]
[1755791419347,8.43618946,182.88,182.84,4.52173845]
[1755791419541,8.43618946,182.88,182.84,5.22173845]
[1755791419964,3.91445101,182.88,182.84,5.22173845]
[1755791420361,3.91445101,182.88,182.85,4.52173845]
[1755791421647,3.91445101,182.88,182.84,5.22173845]
[1755791421836,3.63012787,182.87,182.84,5.22173845]
[1755791422439,3.63012787,182.87,182.83,4.551738]
[1755791422736,0.28432314,182.85,182.83,0.03]
[1755791422940,8.43324731,182.85,182.83,0.03]
[1755791423167,4.60150886,182.84,182.83,0.03]
[1755791423672,9.12324731,182.84,182.83,0.03]
[1755791423848,8.43324731,182.84,182.83,0.03]
[1755791424042,3.91150886,182.84,182.83,0.03]
[1755791424476,4.60150886,182.84,182.83,0.03]
[1755791424768,8.43324731,182.84,182.83,0.03]
[1755791424966,3.91150886,182.84,182.83,0.03]
[1755791425177,9.12324731,182.84,182.83,0.03]
[1755791425974,4.60150886,182.84,182.83,0.03]
[1755791426150,9.12324731,182.84,182.83,0.03]
[1755791427358,3.91150886,182.84,182.83,0.03]
[1755791427673,4.60150886,182.84,182.83,0.03]
[1755791427885,9.12324731,182.84,182.83,0.03]
[1755791428259,3.91150886,182.84,182.83,0.03]
[1755791429355,4.60150886,182.84,182.83,0.03]
[1755791429667,35.12324731,182.84,182.83,0.03]
[1755791430181,29.91150886,182.84,182.83,0.03]
[1755791430583,35.12324731,182.84,182.83,0.03]
[1755791431353,48.71884132,182.84,182.83,0.03]
[1755791431667,48.71884132,182.84,182.81,0.03]
[1755791431668,13.87991715,182.83,182.81,0.03]
[1755791431870,65.42884132,182.82,182.81,0.03]
[1755791432064,8.43324731,182.82,182.81,0.03]
[1755791432302,3.62718572,182.83,182.81,0.03]
[1755791432500,0.14216157,182.83,182.81,0.03]
[1755791432801,3.62718572,182.82,182.81,0.03]
[1755791432976,0.28432314,182.83,182.81,0.03]
[1755791433172,3.62718572,182.84,182.81,5.25173845]
[1755791434878,3.62718572,182.84,182.83,4.52173845]
[1755791435075,8.14733802,182.87,182.82,4.52173845]
[1755791435422,0.28432314,182.85,182.81,4.55173845]
[1755791435711,0.28432314,182.85,182.82,0.7]
[1755791436081,0.28432314,182.85,182.82,4.52173845]
[1755791436383,0.28432314,182.85,182.83,4.52173845]
[1755791436604,3.62559957,182.86,182.83,0.7]
[1755791436906,51.54733802,182.89,182.85,4.52173845]
[1755791437107,9.12166116,182.88,182.83,4.52173845]
[1755791437292,4.31559957,182.88,182.83,4.52173845]
[1755791437497,5.21173845,182.87,182.81,0.03]
[1755791437808,4.80606159,182.86,182.81,4.55173845]
[1755791438002,3.62559957,182.85,182.81,5.25173845]
[1755791438300,5.49606159,182.86,182.81,5.25173845]
[1755791438609,0.69,182.85,182.81,5.25173845]
[1755791438907,4.31559957,182.85,182.81,4.55173845]
[1755791439111,5.49606159,182.84,182.81,0.03]
[1755791439410,8.14733802,182.83,182.81,0.03]
[1755791439911,8.83733802,182.83,182.81,0.03]
[1755791440292,5.21173845,182.82,182.81,0.03]
[1755791440496,5.49606159,182.82,182.81,0.03]
[1755791441016,19.0916556,182.82,182.81,0.03]
[1755791441179,22.71725517,182.82,182.81,0.03]
[1755791441386,35.12166116,182.82,182.81,0.03]
[1755791443111,30.59992271,182.82,182.81,0.03]
[1755791443292,78.52166116,182.82,182.81,0.03]
[1755791443613,4.59992271,182.82,182.81,0.03]
[1755791443822,9.12166116,182.82,182.81,0.03]
[1755791444416,22.71725517,182.82,182.81,0.03]
[1755791444597,26.74282153,182.82,182.81,0.03]
[1755791445505,22.71725517,182.82,182.81,0.03]
[1755791445724,66.19725517,182.82,182.81,0.03]
[1755791446193,26.74071515,182.82,182.81,0.03]
[1755791446385,70.69899362,182.82,182.81,0.03]
[1755791446592,0.28432314,182.77,182.69,0.71]
[1755791446807,4.52173845,182.72,182.69,0.71]
[1755791447014,4.52173845,182.71,182.66,0.71]
[1755791447223,4.52173845,182.71,182.66,5.23173845]
[1755791447395,48.30606159,182.72,182.67,4.52173845]
[1755791447600,4.80606159,182.72,182.67,4.52173845]
[1755791447827,4.80606159,182.72,182.68,5.23173845]
[1755791447994,0.28432314,182.72,182.69,0.71]
[1755791448199,4.80606159,182.72,182.68,4.52173845]
[1755791448521,4.80606159,182.72,182.69,0.71]
[1755791448697,4.80606159,182.72,182.68,4.52173845]
[1755791448897,14.30559401,182.78,182.71,4.52173845]
[1755791449207,4.52173845,182.76,182.72,4.52173845]
[1755791449407,4.52173845,182.76,182.72,0.71]
[1755791449621,5.23173845,182.75,182.71,4.52173845]
[1755791449920,0.14216157,182.75,182.72,0.71]
[1755791450121,0.28432314,182.75,182.72,0.71]
[1755791450301,0.28432314,182.75,182.73,0.71]
[1755791450503,0.71,182.81,182.74,5.23173845]
[1755791450809,0.14216157,182.78,182.75,4.52173845]
[1755791451013,0.28432314,182.78,182.76,0.71]
[1755791451209,4.52173845,182.8,182.76,0.71]
[1755791451388,8.14195421,182.8,182.76,0.71]
[1755791451792,0.28432314,182.79,182.75,4.52173845]
[1755791452189,0.28432314,182.79,182.76,0.71]
[1755791452400,0.14216157,182.79,182.76,0.71]
[1755791452601,0.28432314,182.79,182.76,5.23173845]
[1755791452812,0.28432314,182.79,182.76,0.71]
[1755791453827,4.80606159,182.79,182.75,4.52173845]
[1755791454024,0.28432314,182.77,182.73,4.52173845]
[1755791454227,4.52173845,182.76,182.72,0.71]
[1755791454722,4.52173845,182.74,182.7,5.23173845]
[1755791454908,4.52173845,182.75,182.71,0.71]
[1755791455225,70.51432314,182.77,182.67,44.21]
[1755791455226,4.52173845,182.72,182.67,44.21]
[1755791455526,4.52173845,182.72,182.68,0.71]
[1755791455735,5.23173845,182.72,182.67,5.23173845]
[1755791456702,4.52173845,182.72,182.68,0.71]
[1755791457001,44.53432314,182.74,182.66,4.52173845]
[1755791457002,5.23173845,182.71,182.66,4.52173845]
[1755791457349,4.52173845,182.71,182.67,0.71]
[1755791457829,4.80606159,182.72,182.67,5.23173845]
[1755791457999,4.80606159,182.72,182.67,0.71]
[1755791458328,0.71,182.71,182.67,4.52173845]
[1755791458518,4.80606159,182.72,182.67,5.23173845]
[1755791458734,4.52173845,182.71,182.67,0.71]
[1755791458926,4.52173845,182.71,182.67,5.23173845]
[1755791459125,4.52173845,182.71,182.67,0.71]
[1755791459310,5.23173845,182.71,182.66,4.55173845]
[1755791459633,4.52173845,182.69,182.66,0.03]
[1755791459842,0.28432314,182.72,182.66,0.03]
[1755791460133,4.52173845,182.68,182.66,0.03]
[1755791460543,3.9029822,182.72,182.66,0.03]
[1755791460708,3.56324282,182.76,182.7,4.52173845]
[1755791460902,3.56324282,182.76,182.7,0.71]
[1755791460903,5.23173845,182.76,182.7,0.71]
[1755791461155,4.52173845,182.74,182.66,0.03]
[1755791461308,4.66390002,182.73,182.68,4.52173845]
[1755791461623,4.66390002,182.73,182.68,5.23173845]
[1755791461624,4.52173845,182.72,182.68,5.23173845]
[1755791461827,4.52173845,182.7,182.66,0.03]
[1755791462003,4.52173845,182.7,182.66,5.26173845]
[1755791462204,4.52173845,182.71,182.67,5.23173845]
[1755791462532,48.04173845,182.72,182.66,0.03]
[1755791462705,48.04173845,182.72,182.67,5.23173845]
[1755791462905,0.71,182.76,182.7,4.52173845]
[1755791463116,4.52173845,182.75,182.7,4.52173845]
[1755791463320,0.71,182.74,182.7,4.52173845]
[1755791463525,3.62277562,182.81,182.73,4.52173845]
[1755791463725,0.77,182.81,182.76,4.52173845]
[1755791463904,4.52173845,182.8,182.76,5.23173845]
[1755791464237,4.52173845,182.78,182.73,4.52173845]
[1755791464419,0.71,182.79,182.75,4.52173845]
[1755791464420,5.23173845,182.79,182.75,4.52173845]
[1755791464732,4.52173845,182.79,182.75,5.23173845]
[1755791465306,4.52173845,182.77,182.72,5.23173845]
[1755791465524,0.71,182.76,182.69,5.23173845]
[1755791465736,4.52173845,182.74,182.69,5.23173845]
[1755791465949,4.52173845,182.75,182.71,4.52173845]
[1755791466132,4.33172878,182.79,182.73,4.52173845]
[1755791466339,4.52173845,182.76,182.7,0.71]
[1755791466661,3.76389035,182.78,182.7,4.52173845]
[1755791466940,0.14216157,182.79,182.71,0.71]
[1755791467120,0.28432314,182.79,182.75,4.52173845]
[1755791467553,0.14216157,182.79,182.73,0.71]
[1755791467844,5.37390002,182.79,182.74,4.52173845]
[1755791468057,5.23173845,182.78,182.73,4.52173845]
[1755791468261,4.52173845,182.76,182.69,5.231738]
[1755791468547,4.52173845,182.76,182.71,4.52173845]
[1755791469055,4.52173845,182.76,182.72,0.71]
[1755791469233,4.66390002,182.77,182.72,5.23173845]
[1755791469417,3.6177848,182.79,182.73,5.23173845]
[1755791469617,0.71,182.8,182.75,4.52173845]
[1755791469618,5.23173845,182.8,182.75,4.52173845]
[1755791469860,8.84952325,182.8,182.75,84.32173845]
[1755791470049,3.6177848,182.8,182.75,4.52173845]
[1755791470263,3.6177848,182.8,182.76,4.52173845]
[1755791470566,0.06,182.81,182.79,4.52173845]
[1755791470732,0.06,182.81,182.79,5.23173845]
[1755791470914,0.06,182.81,182.76,0.71]
[1755791471118,0.06,182.81,182.78,4.52173845]
[1755791471545,0.06,182.81,182.78,5.23173845]
[1755791472221,0.06,182.81,182.8,4.52173845]
[1755791472622,0.06,182.81,182.8,5.23173845]
[1755791473020,0.06,182.81,182.8,0.71]
[1755791473259,0.06,182.81,182.8,5.23173845]
[1755791473621,0.06,182.81,182.8,0.71]
[1755791473826,0.06,182.81,182.8,5.23173845]
[1755791474840,0.06,182.81,182.8,54.88924391]
[1755791475452,0.06,182.85,182.83,13.59559401]
[1755791475756,0.06,182.85,182.84,5.06866472]
[1755791476137,0.06,182.85,182.84,5.77866472]
[1755791476343,0.06,182.85,182.82,26.0]
[1755791476544,0.06,182.85,182.84,4.52173845]
[1755791476941,0.06,182.85,182.82,43.66]
[1755791477151,0.06,182.85,182.82,48.18173845]
[1755791477378,0.06,182.85,182.84,4.52173845]
[1755791477656,0.69,182.84,182.78,26.0]
[1755791477835,0.69,182.84,182.8,4.52173845]
[1755791478150,5.21173845,182.84,182.8,4.52173845]
[1755791478352,0.06,182.85,182.79,43.68]
[1755791478353,0.06,182.85,182.81,5.19173845]
[1755791478540,0.06,182.85,182.83,4.52173845]
[1755791479032,0.06,182.85,182.84,4.52173845]
[1755791479239,0.06,182.85,182.83,4.52173845]
[1755791479431,0.06,182.85,182.84,5.19173845]
[1755791480141,0.06,182.85,182.84,48.89173845]
[1755791480635,0.06,182.85,182.84,48.87173845]
[1755791481350,0.06,182.85,182.84,128.67173845]
[1755791481755,0.06,182.85,182.84,134.14100119]
[1755791482140,0.06,182.85,182.84,128.67173845]
[1755791483372,0.06,182.85,182.84,124.15]
[1755791483672,0.06,182.85,182.84,48.20173845]
[1755791483873,0.06,182.85,182.84,48.87173845]
[1755791484167,0.06,182.85,182.84,48.20173845]
[1755791484371,0.06,182.85,182.84,43.68]
[1755791484675,0.06,182.85,182.84,48.20173845]
[1755791485173,0.75,182.85,182.84,43.68]
[1755791485340,0.06,182.85,182.84,48.20173845]
[1755791485546,0.06,182.85,182.84,48.87173845]
[1755791485742,0.06,182.85,182.84,48.20173845]
[1755791487473,0.06,182.85,182.84,48.87173845]
[1755791487849,0.06,182.85,182.84,48.20173845]
[1755791488064,0.06,182.85,182.84,48.87173845]
[1755791488462,0.06,182.85,182.84,54.34100119]
[1755791489145,0.06,182.87,182.86,26.0]
[1755791489350,0.06,182.87,182.86,35.0434769]
[1755791489548,0.06,182.87,182.86,129.10907091]
[1755791489756,0.06,182.89,182.87,13.59559401]
[1755791489958,0.06,182.89,182.88,52.6634769]
[1755791490473,0.06,182.9,182.88,51.66502302]
[1755791490655,0.06,182.9,182.89,0.67]
[1755791490858,0.06,182.92,182.91,31.46716964]
[1755791491056,0.06,182.92,182.91,162.93219266]
[1755791491253,0.06,182.92,182.91,183.90280969]
[1755791491675,0.06,182.92,182.91,113.17502302]
[1755791491974,0.06,182.92,182.91,50.97502302]
[1755791493280,0.75,182.92,182.91,50.97502302]
[1755791494152,0.06,182.92,182.91,50.97502302]
[1755791494779,0.75,182.92,182.91,50.97502302]
[1755791494949,0.75,182.92,182.91,43.6]
[1755791495279,8.12502302,182.92,182.87,87.17502302]
[1755791495566,8.06502302,182.91,182.89,43.56]
[1755791495872,0.69,182.9,182.88,43.56]
[1755791496048,7.37502302,182.91,182.88,43.56]
[1755791496376,0.69,182.89,182.88,43.56]
[1755791497280,0.69,182.89,182.86,7.37502302]
[1755791497460,0.06,182.92,182.88,7.37502302]
[1755791497789,0.69,182.91,182.87,50.93502302]
[1755791498074,0.69,182.9,182.87,50.93502302]
[1755791498270,0.34432314,182.92,182.88,7.37502302]
[1755791498585,8.06502302,182.91,182.86,7.37502302]
[1755791498758,0.34432314,182.92,182.86,43.54]
[1755791498759,7.37502302,182.89,182.86,43.54]
[1755791498950,0.69,182.88,182.86,43.54]
[1755791499289,0.69,182.87,182.86,43.54]
[1755791501881,0.69,182.87,182.86,123.34]
[1755791502073,8.06502302,182.87,182.86,123.34]
[1755791502274,0.69,182.87,182.86,123.34]
[1755791503785,8.06502302,182.87,182.86,79.8]
[1755791503991,21.94494017,182.87,182.86,79.8]
[1755791504192,0.28432314,182.86,182.83,0.03]
[1755791504483,33.65934616,182.84,182.83,0.03]
[1755791504887,34.34934616,182.84,182.83,0.03]
[1755791507579,7.37502302,182.85,182.83,0.03]
[1755791507889,8.04502302,182.87,182.83,0.03]
[1755791508294,7.37502302,182.86,182.83,0.03]
[1755791508492,7.37502302,182.87,182.83,0.03]
[1755791508701,7.37502302,182.87,182.83,0.7]
[1755791508996,0.28432314,182.88,182.83,0.7]
[1755791509162,7.37502302,182.87,182.83,0.7]
[1755791509359,7.37502302,182.87,182.84,43.42]
[1755791509659,0.28432314,182.88,182.85,0.67]
[1755791509932,13.65559401,182.92,182.86,8.04502302]
[1755791510081,0.14216157,182.89,182.86,87.17502302]
[1755791510284,0.14216157,182.89,182.86,79.8]
[1755791510285,0.28432314,182.89,182.86,79.8]
[1755791510680,7.37502302,182.88,182.86,79.8]
[1755791510874,0.28432314,182.89,182.86,79.8]
[1755791511099,7.37502302,182.88,182.86,79.8]
[1755791511523,10.98451906,182.91,182.87,8.04502302]
[1755791511685,7.37502302,182.91,182.87,8.04502302]
[1755791511886,7.37502302,182.91,182.87,43.46]
[1755791512083,7.37502302,182.89,182.87,43.46]
[1755791512607,7.37502302,182.9,182.87,44.13]
[1755791512809,7.37502302,182.89,182.87,43.46]
[1755791513009,3.60949604,182.91,182.87,43.46]
[1755791513195,7.37502302,182.89,182.87,43.46]
[1755791513583,7.37502302,182.9,182.87,43.46]
[1755791514290,7.37502302,182.89,182.87,43.46]
[1755791514484,7.37502302,182.88,182.86,79.8]
[1755791514701,7.37502302,182.87,182.86,79.8]
[1755791515688,8.04502302,182.87,182.86,79.8]
[1755791516201,11.9388422,182.87,182.86,79.8]
[1755791516806,11.9388422,182.87,182.84,79.8]
[1755791517111,7.37502302,182.85,182.84,79.8]
[1755791517312,7.37502302,182.87,182.84,123.99]
[1755791517608,7.37502302,182.86,182.84,123.32]
[1755791517992,7.37502302,182.85,182.84,123.32]
[1755791518390,4.5327182,182.86,182.84,123.32]
[1755791518908,3.60949604,182.88,182.84,123.32]
[1755791519110,3.60949604,182.89,182.85,5.2027182]
[1755791519294,4.5327182,182.89,182.86,44.21]
[1755791519489,29.62705066,182.9,182.86,43.54]
[1755791519691,4.5327182,182.87,182.86,43.54]
[1755791520215,0.67,182.91,182.86,43.54]
[1755791520396,4.5327182,182.87,182.84,79.8]
[1755791520714,3.62681233,182.88,182.86,43.56]
[1755791520899,4.29681233,182.88,182.86,43.56]
[1755791521211,0.28432314,182.9,182.86,44.23]
[1755791521412,4.29681233,182.91,182.86,44.23]
[1755791521595,8.15953053,182.91,182.87,0.67]
[1755791521795,4.5327182,182.89,182.87,43.56]